fUST/lending_fUST_20241022
["ID","MTS","AMOUNT","RATE_DAILY","PERIOD"]
[340619428,1729540234094,217.4212954,0.00014729,2]
[340619429,1729540234118,32.5787046,0.00014729,2]
[340619486,1729540239090,-76.74722285,0.00015278,2]
[340619487,1729540239100,-298.0,0.00015334,2]
[340619488,1729540239110,-300.0,0.00015334,2]
[340619489,1729540239120,-16005.4675197,0.00015335,2]
[340619490,1729540239130,-3000.0,0.00015383,2]
[340619491,1729540239140,-164.839745,0.0001539,2]
[340619492,1729540239151,-164.839745,0.00015503,2]
[340619493,1729540239160,-164.839745,0.00015616,2]
[340619494,1729540239170,-164.839745,0.00015729,2]
[340619495,1729540239180,-164.839745,0.00015842,2]
[340619496,1729540239190,-164.839745,0.00015955,2]
[340619497,1729540239200,-3185.50611925,0.0001619,2]
[340619498,1729540239210,-673.4566191,0.00016236,2]
[340619499,1729540239220,-57146.21220284,0.00016236,2]
[340619500,1729540239230,-85576.8762874,0.00016236,2]
[340619501,1729540239240,-1000.0,0.0001629,2]
[340619502,1729540239253,-160.97506935,0.00016337,2]
[340619503,1729540239263,-196.22593193,0.00016337,2]
[340619504,1729540239273,-19897.37626064,0.00016338,2]
[340619505,1729540239284,-8890.20115101,0.00016353,2]
[340619506,1729540239293,-15607.72867864,0.0001638,2]
[340619507,1729540239304,-281149.925546,0.0001638,2]
[340619508,1729540239314,-393260.136688,0.0001638,2]
[340619509,1729540239324,-1067737.69028776,0.000164,2]
[340619525,1729540240259,-154.46238722,0.00016337,2]
[340619549,1729540243983,-143.76983768,0.00016337,2]
[340619550,1729540243993,-1023.73016231,0.000164,2]
[340619566,1729540248902,150.0,0.0002889,120]
[340619568,1729540273000,67.29,0.00029041,120]
[340619569,1729540273022,82.71,0.00029041,120]
[340619570,1729540274187,157.46567269,0.00029041,120]
[340619571,1729540328429,208.66336037,0.00029041,120]
[340619572,1729540329023,150.0,0.00029041,120]
[340619573,1729540330218,150.0,0.00029041,120]
[340619574,1729540330537,150.0,0.00029041,120]
[340619575,1729540330780,200.0,0.00029041,120]
[340619576,1729540331460,135.16096694,0.00029041,120]
[340619577,1729540331483,14.83903306,0.00029041,120]
[340619578,1729540332446,159.31873781,0.00029041,120]
[340619579,1729540333323,150.0,0.00029041,120]
[340619580,1729540333418,150.10300957,0.00029041,120]
[340619581,1729540334080,150.0,0.00029041,120]
[340619582,1729540334553,200.31738604,0.00029041,120]
[340619583,1729540335968,150.0,0.00029041,120]
[340619584,1729540335999,150.0,0.00029041,120]
[340619585,1729540336191,109.42183352,0.00029041,120]
[340619586,1729540336212,40.57816648,0.00029041,120]
[340619587,1729540337135,200.24921315,0.00029041,120]
[340619588,1729540337805,150.0,0.00029041,120]
[340619589,1729540338003,150.0,0.00029041,120]
[340619590,1729540338210,201.5455877,0.00029041,120]
[340619591,1729540339238,150.2019863,0.00029041,120]
[340619592,1729540340837,215.26947119,0.00029041,120]
[340619593,1729540344126,126.15557518,0.00029041,120]
[340619594,1729540344146,34.25479019,0.00029041,120]
[340619595,1729540346250,150.0,0.00029041,120]
[340619596,1729540346494,150.0,0.00029041,120]
[340619597,1729540346811,200.20242895,0.00029041,120]
[340619598,1729540350160,150.0,0.00029041,120]
[340619599,1729540350376,150.0,0.00029041,120]
[340619600,1729540350576,200.0,0.00029041,120]
[340619601,1729540351738,192.53432731,0.00029041,120]
[340619602,1729540352734,7.00845355,0.00029041,120]
[340619603,1729540353025,194.25249114,0.00029041,120]
[340619604,1729540909417,153.02,0.00029041,120]
[340619606,1729541143100,-362.72990264,0.00013147,2]
[340619608,1729541149107,-958.15601166,0.00013147,2]
[340619609,1729541149130,-27.18099092,0.00013641,2]
[340619611,1729541175939,886.72750886,0.00029,120]
[340619612,1729541175962,127.31985914,0.00029,120]
[340619613,1729541229099,-177.90404149,0.00013116,2]
[340619614,1729541236379,-122.09595851,0.00013116,2]
[340619615,1729541236401,-300.0,0.00013116,2]
[340619616,1729541236423,-4047.27023814,0.00013117,2]
[340619617,1729541244109,-3319.34750604,0.00013117,2]
[340619618,1729541244137,-177.4662131,0.00013117,2]
[340619619,1729541290506,245.0,0.00010959,2]
[340619620,1729541333086,150.0,0.0002889,120]
[340619622,1729541348101,-300.0,0.00013116,2]
[340619623,1729541348123,-300.0,0.00013116,2]
[340619624,1729541348144,-17355.91604272,0.00013117,2]
[340619625,1729541348165,-3000.0,0.00013533,2]
[340619626,1729541348187,-250.0,0.00013656,2]
[340619627,1729541348208,-5993.7175487,0.00013663,2]
[340619628,1729541348229,-250.0,0.00013693,2]
[340619629,1729541348250,-150.0,0.00013704,2]
[340619630,1729541348275,-250.0,0.00013731,2]
[340619631,1729541348296,-250.0,0.00013768,2]
[340619632,1729541348320,-250.0,0.00013806,2]
[340619633,1729541348341,-250.0,0.00013843,2]
[340619634,1729541348362,-250.0,0.00013881,2]
[340619635,1729541348383,-115.23660858,0.00013918,2]
[340619636,1729541348412,-134.76339142,0.00013918,2]
[340619637,1729541348436,-250.0,0.00013956,2]
[340619638,1729541348461,-250.0,0.00013993,2]
[340619639,1729541348484,-250.0,0.00014031,2]
[340619640,1729541348507,-250.0,0.00014068,2]
[340619641,1729541348529,-158.268897,0.00014084,2]
[340619642,1729541348550,-158.268897,0.00014092,2]
[340619643,1729541348575,-158.268897,0.00014101,2]
[340619644,1729541348600,-250.0,0.00014105,2]
[340619645,1729541348629,-189.0,0.00014108,2]
[340619646,1729541348659,-158.268897,0.0001411,2]
[340619647,1729541348687,-158.268897,0.00014119,2]
[340619648,1729541348713,-158.268897,0.00014128,2]
[340619649,1729541348739,-158.268897,0.00014136,2]
[340619650,1729541348765,-250.0,0.00014143,2]
[340619651,1729541348794,-158.268897,0.00014145,2]
[340619652,1729541348815,-158.268897,0.00014154,2]
[340619653,1729541348839,-250.0,0.0001418,2]
[340619654,1729541348862,-250.0,0.00014218,2]
[340619655,1729541348884,-250.0,0.00014255,2]
[340619656,1729541348905,-250.0,0.00014293,2]
[340619657,1729541348926,-250.0,0.0001433,2]
[340619658,1729541348947,-250.0,0.00014368,2]
[340619659,1729541348968,-420.0,0.00014382,2]
[340619660,1729541348989,-420.0,0.00014428,2]
[340619661,1729541369129,-960.51615844,0.00014976,2]
[340619662,1729541369150,-150.25,0.00015,2]
[340619706,1729541432242,-175.722846,0.00015439,2]
[340619708,1729541432252,-175.722846,0.00015452,2]
[340619710,1729541432263,-115.65360799,0.00015465,2]
[340619714,1729541432296,-60.06923801,0.00015465,2]
[340619716,1729541432306,-175.722846,0.00015478,2]
[340619718,1729541432315,-175.722846,0.00015491,2]
[340619720,1729541432324,-175.722846,0.00015504,2]
[340619721,1729541432333,-175.722846,0.00015517,2]
[340619723,1729541432343,-213.98095407,0.0001579,2]
[340619725,1729541432353,-159.445502,0.0001589,2]
[340619727,1729541432363,-300.0,0.00015897,2]
[340619729,1729541432371,-8890.20115101,0.00015898,2]
[340619731,1729541432381,-253.318014,0.00016,2]
[340619733,1729541432390,-454.509428,0.00016063,2]
[340619735,1729541432400,-167.092768,0.00016063,2]
[340619737,1729541432410,-594.536392,0.00016063,2]
[340619739,1729541432419,-213.98095406,0.00016077,2]
[340619741,1729541432428,-150.0,0.00016087,2]
[340619742,1729541432438,-180.0,0.00016124,2]
[340619744,1729541432448,-474.65222298,0.00016177,2]
[340619746,1729541432459,-3269.99518446,0.00016258,2]
[340619748,1729541432468,-109.96192849,0.00016264,2]
[340619772,1729541432754,-344.54749951,0.00016264,2]
[340619773,1729541432765,-594.536392,0.00016264,2]
[340619774,1729541432774,-157.82250349,0.00016268,2]
[340619775,1729541432783,-157.82250347,0.00016271,2]
[340619776,1729541432793,-157.82250347,0.00016274,2]
[340619777,1729541432802,-157.82250347,0.00016277,2]
[340619778,1729541432811,-659.7169945,0.00016279,2]
[340619779,1729541432820,-157.82250347,0.0001628,2]
[340619780,1729541432830,-636.94887216,0.000163,2]
[340619883,1729541439536,-129.82188234,0.000163,2]
[340619884,1729541439546,-246.59349676,0.00016338,2]
[340619904,1729541440398,-1363.23322454,0.00016338,2]
[340619905,1729541440407,-640.34410563,0.00016357,2]
[340619906,1729541440417,-188.8230901,0.00016357,2]
[340619907,1729541440426,-500.0,0.00016357,2]
[340619908,1729541440435,-500.0,0.00016357,2]
[340619909,1729541440444,-500.0,0.00016357,2]
[340619910,1729541440454,-500.0,0.00016357,2]
[340619911,1729541440464,-500.0,0.00016357,2]
[340619912,1729541440474,-500.0,0.00016357,2]
[340619913,1729541440483,-500.0,0.00016357,2]
[340619914,1729541440493,-500.0,0.00016357,2]
[340619915,1729541440503,-8.89957973,0.00016357,2]
[340619916,1729541440515,-491.10042027,0.00016357,2]
[340619917,1729541440525,-500.0,0.00016357,2]
[340619918,1729541440535,-500.0,0.00016357,2]
[340619919,1729541440544,-500.0,0.00016357,2]
[340619920,1729541440553,-500.0,0.00016357,2]
[340619921,1729541440562,-500.0,0.00016357,2]
[340619922,1729541440572,-500.0,0.00016357,2]
[340619923,1729541440581,-500.0,0.00016357,2]
[340619924,1729541440591,-500.0,0.00016357,2]
[340619925,1729541440601,-500.0,0.00016357,2]
[340619926,1729541440611,-500.0,0.00016357,2]
[340619927,1729541440621,-500.0,0.00016357,2]
[340619928,1729541440631,-500.0,0.00016357,2]
[340619929,1729541440641,-500.0,0.00016357,2]
[340619930,1729541440650,-500.0,0.00016357,2]
[340619931,1729541440660,-500.0,0.00016357,2]
[340619932,1729541440671,-500.0,0.00016357,2]
[340619933,1729541440682,-500.0,0.00016357,2]
[340619934,1729541440692,-500.0,0.00016357,2]
[340619935,1729541440701,-546.95940355,0.00016357,2]
[340619936,1729541440711,-500.0,0.00016357,2]
[340619937,1729541440721,-500.0,0.00016357,2]
[340619938,1729541440731,-500.0,0.00016357,2]
[340619939,1729541440740,-500.0,0.00016357,2]
[340619940,1729541440750,-500.0,0.00016357,2]
[340619941,1729541440760,-500.0,0.00016357,2]
[340619942,1729541440770,-500.0,0.00016357,2]
[340619943,1729541440780,-500.0,0.00016357,2]
[340619944,1729541440789,-500.0,0.00016357,2]
[340619945,1729541440798,-500.0,0.00016357,2]
[340619946,1729541440808,-500.0,0.00016357,2]
[340619947,1729541440817,-500.0,0.00016357,2]
[340619948,1729541440826,-500.0,0.00016357,2]
[340619949,1729541440835,-500.0,0.00016357,2]
[340619950,1729541440850,-500.0,0.00016357,2]
[340619951,1729541440859,-500.0,0.00016357,2]
[340619952,1729541440869,-500.0,0.00016357,2]
[340619953,1729541440879,-500.0,0.00016357,2]
[340619954,1729541440889,-493.33665097,0.00016357,2]
[340619955,1729541440898,-500.0,0.00016357,2]
[340619956,1729541440908,-500.0,0.00016357,2]
[340619957,1729541440917,-8623.38546321,0.00016358,2]
[340620002,1729541446409,-159.445502,0.0001589,2]
[340620003,1729541446419,-724.6197369,0.00016358,2]
[340620004,1729541446430,-1520.762904,0.00016358,2]
[340620006,1729541477511,112.83011216,0.00010959,2]
[340620007,1729541477533,582.87988784,0.00010959,2]
[340620008,1729541543964,150.0,0.0002889,120]
[340620012,1729541619171,-810.19,0.000199,31]
[340620013,1729541619194,-810.19,0.000199,31]
[340620014,1729541619215,-810.19,0.000199,31]
[340620015,1729541619240,-810.19,0.000199,31]
[340620016,1729541619262,-810.19,0.000199,31]
[340620017,1729541619283,-810.19,0.000199,31]
[340620018,1729541619305,-38.86,0.000199,31]
[340620028,1729542142720,313.34298,0.00015,30]
[340620029,1729542142744,924.65702,0.00015,30]
[340620034,1729542348096,-250.0,0.00014737,2]
[340620035,1729542348119,-250.0,0.00014778,2]
[340620036,1729542348141,-215.14751277,0.00014818,2]
[340620037,1729542352333,-34.85248723,0.00014818,2]
[340620038,1729542352355,-250.0,0.00014859,2]
[340620039,1729542352374,-181.13424677,0.0001488,2]
[340620041,1729542396108,-169.29422994,0.00014075,2]
[340620042,1729542428097,-1406.6528816,0.00013963,2]
[340620043,1729542428119,-1347.5353465,0.00014075,2]
[340620044,1729542431141,-1685.83430506,0.00014075,2]
[340620045,1729542431163,-250.0,0.00014899,2]
[340620046,1729542431183,-250.0,0.00014939,2]
[340620047,1729542431203,-1169.72340152,0.00014966,2]
[340620050,1729542448197,-975.03913513,0.00014966,2]
[340620051,1729542452096,-617.79651489,0.00014263,2]
[340620052,1729542454096,-2256.42645551,0.00014263,2]
[340620053,1729542454119,-300.0,0.00014969,2]
[340620054,1729542454148,-300.0,0.0001497,2]
[340620055,1729542454172,-586.17436171,0.00014971,2]
[340620056,1729542454195,-1908.3145538,0.00014971,2]
[340620060,1729542562135,-300.0,0.0001497,2]
[340620061,1729542562156,-300.0,0.0001497,2]
[340620062,1729542562177,-22991.6854462,0.00014971,2]
[340620063,1729542562259,-250.0,0.0001498,2]
[340620064,1729542562281,-25.07689856,0.0001502,2]
[340620075,1729542577009,267.4874111,0.00014558,2]
[340620076,1729542577031,261.15225505,0.00014558,2]
[340620077,1729542577053,187.68485092,0.00014558,2]
[340620078,1729542577075,241.95689765,0.00014558,2]
[340620079,1729542577096,163.37653679,0.00014558,2]
[340620080,1729542625582,150.0,0.0002889,120]
[340620108,1729542632437,-300.0,0.00014557,2]
[340620110,1729542632446,-300.0,0.00014557,2]
[340620112,1729542632456,-3336.29466267,0.00014558,2]
[340620137,1729542639369,-20442.04738582,0.00014558,2]
[340620138,1729542639379,-224.92310144,0.0001502,2]
[340620139,1729542639390,-250.0,0.00015061,2]
[340620140,1729542639400,-250.0,0.00015101,2]
[340620141,1729542639409,-250.0,0.00015142,2]
[340620142,1729542639419,-250.0,0.00015182,2]
[340620143,1729542639429,-250.0,0.00015222,2]
[340620144,1729542639438,-250.0,0.00015263,2]
[340620145,1729542639448,-250.0,0.00015303,2]
[340620146,1729542639457,-250.0,0.00015344,2]
[340620147,1729542639467,-250.0,0.00015384,2]
[340620148,1729542639477,-153.0,0.000154,2]
[340620149,1729542639486,-153.0,0.000154,2]
[340620150,1729542639496,-250.0,0.00015424,2]
[340620151,1729542639506,-250.0,0.00015465,2]
[340620152,1729542639515,-250.0,0.00015505,2]
[340620153,1729542639525,-306.0,0.000158,2]
[340620154,1729542639535,-153.0,0.0001589,2]
[340620155,1729542639544,-153.0,0.0001589,2]
[340620156,1729542639557,-153.0,0.0001589,2]
[340620157,1729542639566,-165.913681,0.0001589,2]
[340620158,1729542639576,-153.0,0.000159,2]
[340620159,1729542639587,-153.0,0.000159,2]
[340620160,1729542639596,-420.0,0.00015939,2]
[340620161,1729542639606,-150.0,0.00016,2]
[340620162,1729542639616,-12540.7105178,0.00016,7]
[340620163,1729542639847,-589.72564446,0.00016,7]
[340620166,1729542640054,-108.33768168,0.00016,7]
[340620173,1729542640832,-333.39389729,0.00016,7]
[340620179,1729542643587,-502.86482582,0.00016,7]
[340620180,1729542643599,-390.78290781,0.00016,2]
[340620181,1729542643611,-1692.61985276,0.00016132,2]
[340620213,1729543531137,-300.0,0.00015038,2]
[340620214,1729543531161,-300.0,0.00015038,2]
[340620215,1729543531189,-910.31441676,0.00015039,2]
[340620216,1729543546237,-305.25401778,0.00015039,2]
[340620217,1729543632113,-2712.59659336,0.0001478,2]
[340620218,1729543637139,-287.40340664,0.0001478,2]
[340620219,1729543637161,-300.0,0.00015038,2]
[340620220,1729543637184,-300.0,0.00015038,2]
[340620221,1729543637211,-18667.3802292,0.00015039,2]
[340620222,1729543643101,-410.71831431,0.00015039,2]
[340620223,1729543703996,150.0,0.0002889,120]
[340620224,1729543772131,-4602.0159869,0.00015039,2]
[340620234,1729543835754,-5467.16820567,0.0001482,2]
[340620306,1729543839970,-4405.25828343,0.0001482,2]
[340620308,1729543839980,-210.24726,0.00014983,2]
[340620310,1729543839989,-210.24726,0.00015024,2]
[340620312,1729543840000,-210.24726,0.00015065,2]
[340620314,1729543840009,-169.18384597,0.00015088,2]
[340620316,1729543840021,-80.81615403,0.00015088,2]
[340620318,1729543840030,-210.24726,0.00015106,2]
[340620320,1729543840040,-111.07903301,0.00015147,2]
[340620355,1729543840710,-99.16822699,0.00015147,2]
[340620357,1729543840720,-210.24726,0.00015188,2]
[340620358,1729543840729,-210.24726,0.00015229,2]
[340620359,1729543840738,-210.24726,0.0001527,2]
[340620360,1729543840747,-162.31890218,0.00015312,2]
[340620361,1729543840758,-47.92835782,0.00015312,2]
[340620362,1729543840767,-210.24726,0.00015353,2]
[340620363,1729543840776,-210.24726,0.00015394,2]
[340620364,1729543840786,-210.24726,0.00015435,2]
[340620365,1729543840795,-148.94843928,0.00015476,2]
[340620366,1729543840819,-61.29882072,0.00015476,2]
[340620367,1729543840828,-210.24726,0.00015517,2]
[340620368,1729543840837,-210.24726,0.00015558,2]
[340620369,1729543840846,-210.24726,0.00015599,2]
[340620370,1729543840855,-828.5365305,0.000156,2]
[340620371,1729543840864,-210.24726,0.0001564,2]
[340620372,1729543840873,-316.17137826,0.00015679,2]
[340620373,1729543840882,-210.24726,0.00015681,2]
[340620374,1729543840891,-150.0,0.00015701,2]
[340620375,1729543841096,-210.24726,0.00015722,2]
[340620376,1729543841106,-210.24726,0.00015764,2]
[340620377,1729543841115,-300.0,0.00015828,2]
[340620378,1729543841124,-8890.20115101,0.0001586,2]
[340620379,1729543841132,-160.458523,0.0001589,2]
[340620380,1729543841141,-1000.0,0.00016,16]
[340620381,1729543841151,-465.48261115,0.00016136,2]
[340620382,1729543841160,-153.0,0.00016247,2]
[340620383,1729543841169,-2291.60556689,0.00016297,2]
[340620384,1729543841178,-1439.31576493,0.00016338,2]
[340620385,1729543841188,-1000.0,0.00016338,2]
[340620386,1729543841198,-194.73133744,0.00016357,2]
[340620387,1729543841207,-304.077,0.00016358,2]
[340620388,1729543841216,-500.0,0.00016389,2]
[340620389,1729543841225,-500.0,0.00016389,2]
[340620390,1729543841234,-500.0,0.00016389,2]
[340620391,1729543841244,-500.0,0.00016389,2]
[340620392,1729543841253,-500.0,0.00016389,2]
[340620393,1729543841262,-500.0,0.00016389,2]
[340620394,1729543841272,-308.9280155,0.00016389,2]
[340620395,1729543841281,-500.0,0.00016389,2]
[340620396,1729543841291,-500.0,0.00016389,2]
[340620397,1729543841302,-500.0,0.00016389,2]
[340620398,1729543841313,-418.90920792,0.00016389,2]
[340620399,1729543841574,-81.09079208,0.00016389,2]
[340620400,1729543841584,-500.0,0.00016389,2]
[340620401,1729543841593,-500.0,0.00016389,2]
[340620402,1729543841603,-500.0,0.00016389,2]
[340620403,1729543841612,-440.82452633,0.00016389,2]
[340620404,1729543841621,-500.0,0.00016389,2]
[340620405,1729543841630,-500.0,0.00016389,2]
[340620406,1729543841640,-500.0,0.00016389,2]
[340620407,1729543841649,-333.71384152,0.00016389,2]
[340620408,1729543841658,-500.0,0.00016389,2]
[340620409,1729543841668,-500.0,0.00016389,2]
[340620410,1729543841677,-191.11692032,0.00016389,2]
[340620424,1729543843767,-308.88307968,0.00016389,2]
[340620425,1729543843777,-500.0,0.00016389,2]
[340620426,1729543843789,-493.649607,0.00016389,2]
[340620427,1729543843798,-803.80632471,0.0001639,2]
[340620428,1729543843823,-4998.44503991,0.0001639,2]
[340620429,1729543843834,-8658.95909358,0.0001639,2]
[340620430,1729543843843,-374.88249919,0.0001639,2]
[340620431,1729543846657,-160.76211,0.0001589,2]
[340620432,1729543846666,-5037.13432713,0.0001639,2]
[340620433,1729543846679,-22124.48339658,0.0001639,2]
[340620434,1729543846689,-5294.39779842,0.0001639,2]
[340620435,1729543846713,-756.324146,0.0001639,2]
[340620597,1729543941608,261.15225505,0.00010959,2]
[340620598,1729543941658,38.49774495,0.00010959,2]
[340620599,1729543983262,151.0,0.0002889,120]
[340620620,1729544734168,-300.0,0.00015024,2]
[340620621,1729544734191,-56.98231416,0.00015024,2]
[340620622,1729544738092,-243.01768584,0.00015024,2]
[340620623,1729544738116,-930.71705815,0.00015025,2]
[340620624,1729544838134,-219.0,0.00015024,2]
[340620625,1729544838159,-216.6843537,0.00015024,2]
[340620626,1729544840113,-83.3156463,0.00015024,2]
[340620627,1729544840135,-3311.25676847,0.00015025,2]
[340620628,1729544846143,-388.34836537,0.00015025,2]
[340620629,1729544848132,-162.61604234,0.00015025,2]
[340620639,1729544947137,-1320.8859143,0.00014808,2]
[340620640,1729544947161,-300.0,0.00014981,2]
[340620641,1729544947185,-23058.14412591,0.00014982,2]
[340620676,1729545031802,-368.26514579,0.00014982,2]
[340620678,1729545031812,-187.86838,0.00015186,2]
[340620680,1729545031821,-187.86838,0.00015228,2]
[340620682,1729545031830,-187.86838,0.0001527,2]
[340620684,1729545031839,-187.86838,0.00015311,2]
[340620685,1729545031849,-187.86838,0.00015353,2]
[340620687,1729545031858,-187.86838,0.00015394,2]
[340620689,1729545031867,-187.86838,0.00015436,2]
[340620691,1729545031875,-37.87121427,0.00015478,2]
[340620728,1729545038039,-149.99716573,0.00015478,2]
[340620729,1729545038049,-187.86838,0.00015519,2]
[340620730,1729545038059,-187.86838,0.00015561,2]
[340620731,1729545038067,-187.86838,0.00015603,2]
[340620732,1729545038076,-187.86838,0.00015644,2]
[340620733,1729545038085,-187.86838,0.00015686,2]
[340620734,1729545038096,-500.0,0.00015712,7]
[340620735,1729545038105,-231.47,0.00015712,7]
[340620736,1729545038114,-187.86838,0.00015728,2]
[340620737,1729545038124,-187.86838,0.00015769,2]
[340620738,1729545038133,-300.0,0.00015777,2]
[340620739,1729545038144,-302.3308074,0.00015778,2]
[340620740,1729545038154,-414.9392584,0.00015778,2]
[340620741,1729545038163,-210.7185294,0.00015778,2]
[340620742,1729545038172,-414.9392584,0.00015778,2]
[340620743,1729545038181,-302.3308074,0.00015778,2]
[340620744,1729545038190,-414.9392584,0.00015778,2]
[340620745,1729545038199,-210.7185294,0.00015778,2]
[340620746,1729545038208,-210.7185294,0.000158,2]
[340620747,1729545038217,-414.9392584,0.000158,2]
[340620748,1729545038227,-306.0,0.000158,2]
[340620749,1729545038237,-187.86838,0.00015811,2]
[340620750,1729545038246,-187.86838,0.00015853,2]
[340620751,1729545038257,-421.3368784,0.00015878,2]
[340620752,1729545038271,-166.731541,0.0001589,2]
[340620753,1729545038280,-187.86838,0.00015894,2]
[340620754,1729545038288,-187.86838,0.00015936,2]
[340620755,1729545038298,-187.86838,0.00015977,2]
[340620756,1729545038307,-210.7185294,0.00015978,2]
[340620757,1729545038317,-155.670476,0.00015978,2]
[340620758,1729545038326,-8890.20115101,0.00015993,2]
[340620759,1729545038336,-306.0,0.00016027,2]
[340620760,1729545038347,-414.9392584,0.00016164,2]
[340620761,1729545038356,-366.3927087,0.00016247,2]
[340620762,1729545038365,-843.11984908,0.00016299,2]
[340620763,1729545038375,-291.44643043,0.00016338,2]
[340620764,1729545038385,-155.1381125,0.00016384,2]
[340620765,1729545038395,-289.23688296,0.00016389,2]
[340620766,1729545038404,-612.17438051,0.00016389,2]
[340620767,1729545038413,-498.08817048,0.00016389,2]
[340620768,1729545038422,-181.0766905,0.00016389,2]
[340620769,1729545038431,-181.67186398,0.00016389,2]
[340620770,1729545038440,-221.45498032,0.00016389,2]
[340620771,1729545038448,-500.0,0.00016389,2]
[340620772,1729545038457,-493.42494737,0.00016389,2]
[340620773,1729545038466,-592.63487128,0.00016389,2]
[340620774,1729545038475,-399.89008968,0.0001639,2]
[340620775,1729545038486,-7230.6052291,0.0001639,2]
[340620776,1729545038499,-243.262,0.0001639,2]
[340620777,1729545038508,-151.0,0.0001639,2]
[340620778,1729545038517,-151.0,0.0001639,2]
[340620779,1729545038527,-151.0,0.0001639,2]
[340620780,1729545038536,-151.0,0.0001639,2]
[340620781,1729545038545,-381.403253,0.0001639,2]
[340620782,1729545038554,-381.403253,0.0001639,2]
[340620783,1729545038563,-381.403253,0.0001639,2]
[340620784,1729545038572,-381.403253,0.0001639,2]
[340620785,1729545038581,-151.0,0.0001639,2]
[340620786,1729545038591,-156.132548,0.0001639,2]
[340620787,1729545038601,-151.0,0.0001639,2]
[340620788,1729545038610,-151.0,0.0001639,2]
[340620789,1729545038619,-151.0,0.0001639,2]
[340620790,1729545038628,-250.800617,0.0001639,2]
[340620791,1729545038637,-250.800617,0.0001639,2]
[340620792,1729545038647,-151.0,0.0001639,2]
[340620793,1729545038656,-151.0,0.0001639,2]
[340620794,1729545038666,-465.427688,0.0001639,2]
[340620795,1729545038675,-465.427688,0.0001639,2]
[340620796,1729545038684,-151.0,0.0001639,2]
[340620797,1729545038693,-151.0,0.0001639,2]
[340620798,1729545038702,-280.537796,0.0001639,2]
[340620799,1729545038712,-151.0,0.0001639,2]
[340620800,1729545038721,-151.0,0.0001639,2]
[340620801,1729545038730,-151.0,0.0001639,2]
[340620802,1729545038740,-151.0,0.0001639,2]
[340620803,1729545038750,-151.0,0.0001639,2]
[340620804,1729545038759,-208.082784,0.0001639,2]
[340620805,1729545038768,-151.0,0.0001639,2]
[340620806,1729545038777,-151.0,0.0001639,2]
[340620807,1729545038786,-53308.1916229,0.0001639,2]
[340620808,1729545038795,-157723.639876,0.0001639,2]
[340620809,1729545038805,-151.0,0.0001639,2]
[340620810,1729545038814,-464.600923,0.0001639,2]
[340620811,1729545038823,-151.0,0.0001639,2]
[340620812,1729545038832,-464.600923,0.0001639,2]
[340620813,1729545038841,-151.0,0.0001639,2]
[340620814,1729545038850,-151.0,0.0001639,2]
[340620815,1729545038858,-151.0,0.0001639,2]
[340620816,1729545038867,-238.637807,0.0001639,2]
[340620817,1729545038877,-151.0,0.0001639,2]
[340620818,1729545038886,-250.357496,0.0001639,2]
[340620819,1729545038895,-151.0,0.0001639,2]
[340620820,1729545038904,-151.0,0.0001639,2]
[340620821,1729545038914,-151.0,0.0001639,2]
[340620822,1729545038923,-151.0,0.0001639,2]
[340620823,1729545038931,-151.0,0.0001639,2]
[340620824,1729545038941,-151.0,0.0001639,2]
[340620825,1729545038950,-151.0,0.0001639,2]